bitfinex/quotes_SOLUSD_20241115
["timestamp","ask_amount","ask_price","bid_price","bid_amount"]
[1731688842583,0.1,209.18,209.13,16.7358]
[1731688842932,0.1,209.16,209.13,16.7358]
[1731688843229,0.1,209.16,209.15,21.93941462]
[1731688843396,0.1,209.18,209.15,21.93941462]
[1731688843594,0.1,209.16,209.13,16.7358]
[1731688844584,0.1,209.16,209.15,21.93941462]
[1731688846291,0.1,209.11,209.09,21.93941462]
[1731688846500,0.1,209.09,209.02,16.6282]
[1731688846989,0.1,209.09,209.08,21.93941462]
[1731688847710,0.1,209.07,209.04,21.93941462]
[1731688847879,0.1,209.09,209.06,21.93941462]
[1731688848085,0.1,209.09,209.07,21.93941462]
[1731688848492,0.1,209.09,209.08,21.93941462]
[1731688848882,0.1,209.11,209.08,21.93941462]
[1731688849199,0.1,209.11,209.1,21.93941462]
[1731688849399,0.1,209.11,209.04,23.776884]
[1731688849400,0.1,209.11,209.08,21.93941462]
[1731688850185,0.1,209.11,209.06,4.7832]
[1731688850186,0.1,209.07,209.05,21.93941462]
[1731688850588,0.1,209.09,209.06,21.93941462]
[1731688850783,0.1,209.09,209.02,16.7446]
[1731688850784,0.1,209.09,209.07,21.93941462]
[1731688851395,0.1,209.09,209.08,21.93941462]
[1731688851601,0.1,209.07,209.05,21.93941462]
[1731688851789,0.1,209.09,209.06,21.93941462]
[1731688851997,0.1,209.11,209.08,21.93941462]
[1731688852194,0.1,209.11,209.1,21.93941462]
[1731688852794,0.1,209.09,209.07,21.93941462]
[1731688852996,0.1,209.09,209.02,16.8446]
[1731688852997,0.1,209.09,209.08,21.93941462]
[1731688853572,0.1,209.15,209.11,23.776884]
[1731688853705,0.1,209.15,209.14,21.93941462]
[1731688853905,0.1,209.17,209.14,21.93941462]
[1731688854197,0.1,209.17,209.16,21.93941462]
[1731688854570,0.1,209.19,209.16,21.93941462]
[1731688854808,0.1,209.21,209.18,21.93941462]
[1731688854994,0.1,209.21,209.2,21.93941462]
[1731688855566,0.1,209.21,209.19,21.93941462]
[1731688855897,0.1,209.21,209.2,21.93941462]
[1731688856487,0.1,209.21,209.19,21.93941462]
[1731688856893,0.1,209.21,209.15,11.9526]
[1731688857090,0.1,209.21,209.18,21.93941462]
[1731688857405,0.1,209.21,209.19,21.93941462]
[1731688857809,0.1,209.21,209.2,21.93941462]
[1731688858398,0.1,209.21,209.19,21.93941462]
[1731688858623,0.1,209.19,209.18,21.93941462]
[1731688859124,0.1,209.17,209.15,21.93941462]
[1731688859355,0.1,209.15,209.14,21.93941462]
[1731688860222,0.1,209.17,209.14,21.93941462]
[1731688860414,0.1,209.21,209.16,21.93941462]
[1731688860718,0.1,209.21,209.2,21.93941462]
[1731688860919,0.1,209.21,209.18,21.93941462]
[1731688861117,0.1,209.21,209.19,21.93941462]
[1731688861417,0.1,209.21,209.2,21.93941462]
[1731688861618,0.1,209.21,209.19,21.93941462]
[1731688861800,0.1,209.21,209.2,21.93941462]
[1731688862500,0.1,209.25,209.2,21.93941462]
[1731688862705,0.1,209.25,209.24,21.93941462]
[1731688863107,0.1,209.31,209.24,21.93941462]
[1731688863321,0.1,209.31,209.3,21.93941462]
[1731688863503,0.1,209.33,209.3,21.93941462]
[1731688863716,0.1,209.33,209.31,21.93941462]
[1731688863906,0.1,209.33,209.32,21.93941462]
[1731688864230,0.1,209.35,209.32,21.93941462]
[1731688864399,0.1,209.35,209.34,21.93941462]
[1731688865018,0.1,209.4,209.35,23.776884]
[1731688865226,0.1,209.38,209.36,21.93941462]
[1731688865399,0.1,209.38,209.35,21.93941462]
[1731688865915,0.1,209.38,209.36,21.93941462]
[1731688866606,0.1,209.36,209.33,11.9428]
[1731688866843,0.1,209.36,209.33,21.93941462]
[1731688867117,0.1,209.36,209.31,28.554384]
[1731688867118,0.1,209.34,209.3,21.93941462]
[1731688867307,0.1,209.29,209.27,21.93941462]
[1731688867520,0.1,209.27,209.24,21.93941462]
[1731688867705,0.1,209.27,209.26,21.93941462]
[1731688868220,0.1,209.29,209.26,21.93941462]
[1731688868450,0.1,209.27,209.26,21.93941462]
[1731688868637,0.1,209.29,209.26,21.93941462]
[1731688868921,0.1,209.29,209.27,21.93941462]
[1731688869126,0.1,209.27,209.25,21.93941462]
[1731688869516,0.1,209.27,209.23,33.88761462]
[1731688869743,0.1,209.23,209.2,21.93941462]
[1731688869911,0.1,209.21,209.18,33.89081462]
[1731688870216,0.1,209.21,209.18,21.93941462]
[1731688870599,0.1,209.21,209.2,21.93941462]
[1731688870803,0.1,209.25,209.2,21.93941462]
[1731688871104,0.1,209.29,209.24,21.93941462]
[1731688871299,0.1,209.29,209.28,21.93941462]
[1731688871731,0.1,209.29,209.27,21.93941462]
[1731688871908,0.1,209.31,209.28,21.93941462]
[1731688872223,6.5547,209.35,209.28,21.93941462]
[1731688872224,0.1,209.29,209.28,21.93941462]
[1731688872430,0.1,209.3,209.28,21.93941462]
[1731688872602,0.1,209.4,209.25,16.7261]
[1731688872603,0.1,209.32,209.29,21.93941462]
[1731688873224,0.1,209.3,209.28,21.93941462]
[1731688873625,0.1,209.3,209.26,23.776884]
[1731688873626,0.1,209.32,209.29,21.93941462]
[1731688873805,0.1,209.32,209.3,21.93941462]
[1731688874124,0.1,209.34,209.31,21.93941462]
[1731688874430,0.1,209.34,209.33,21.93941462]
[1731688875226,6.3673,209.41,209.33,21.93941462]
[1731688875227,0.1,209.36,209.33,26.71651462]
[1731688875406,0.1,209.36,209.34,21.93941462]
[1731688875720,0.1,209.38,209.35,21.93941462]
[1731688875901,0.1,209.38,209.37,21.93941462]
[1731688876826,0.1,209.38,209.36,21.93941462]
[1731688877324,0.1,209.34,209.31,21.93941462]
[1731688877620,4.2984,209.38,209.27,21.93941462]
[1731688877621,0.1,209.3,209.27,21.93941462]
[1731688878002,0.1,209.3,209.26,21.93941462]
[1731688878439,0.1,209.34,209.29,21.93941462]
[1731688878720,0.1,209.34,209.24,16.7264]
[1731688878721,0.1,209.34,209.31,21.93941462]
[1731688878925,0.1,209.34,209.33,21.93941462]
[1731688879121,0.1,209.32,209.28,33.88481462]
[1731688879333,0.1,209.3,209.28,33.88481462]
[1731688879505,0.1,209.3,209.29,21.93941462]
[1731688879703,0.1,209.3,209.28,11.9454]
[1731688879901,0.1,209.3,209.29,21.93941462]
[1731688880128,0.1,209.34,209.29,21.93941462]
[1731688880425,0.1,209.39,209.32,21.93941462]
[1731688880426,0.1,209.35,209.32,21.93941462]
[1731688880999,0.1,209.32,209.3,21.93941462]
[1731688881236,0.1,209.3,209.28,11.9454]
[1731688882111,0.1,209.32,209.29,21.93941462]
[1731688882422,0.1,209.3,209.28,11.9454]
[1731688882919,0.1,209.3,209.28,33.88481462]
[1731688883131,0.1,209.32,209.29,33.88451462]
[1731688883327,20.0,209.42,209.29,33.88451462]
[1731688883328,0.1,209.34,209.31,21.93941462]
[1731688883515,0.1,209.36,209.33,21.93941462]
[1731688883714,0.1,209.34,209.33,21.93941462]
[1731688884214,0.1,209.34,209.32,21.93941462]
[1731688884411,0.1,209.34,209.31,21.93941462]
[1731688885717,0.1,209.32,209.29,33.88451462]
[1731688886805,0.1,209.34,209.31,21.93941462]
[1731688887001,0.1,209.38,209.34,23.776884]
[1731688887206,0.1,209.38,209.36,21.93941462]
[1731688889137,0.1,209.38,209.37,21.93941462]
[1731688889503,0.1,209.41,209.38,23.776884]
[1731688889713,0.1,209.44,209.41,23.776884]
[1731688890021,0.1,209.44,209.43,21.93941462]
[1731688890937,0.1,209.37,209.36,21.93941462]
[1731688891106,0.1,209.47,209.27,15.1876]
[1731688891107,0.1,209.33,209.3,21.93941462]
[1731688891307,0.1,209.29,209.27,21.93941462]
[1731688891523,0.1,209.29,209.26,21.93941462]
[1731688891828,0.1,209.29,209.27,21.93941462]
[1731688892224,0.1,209.29,209.28,21.93941462]
[1731688892530,0.1,209.31,209.28,26.71741462]
[1731688892725,6.3294,209.38,209.28,26.71741462]
[1731688892726,0.1,209.33,209.3,21.93941462]
[1731688892916,0.1,209.33,209.31,21.93941462]
[1731688893440,0.1,209.35,209.32,21.93941462]
[1731688893616,0.1,209.35,209.33,21.93941462]
[1731688893812,0.1,209.35,209.34,21.93941462]
[1731688894024,0.1,209.37,209.35,23.776884]
[1731688894324,0.1,209.4,209.37,23.776884]
[1731688894523,0.1,209.42,209.39,21.93941462]
[1731688894739,0.1,209.41,209.4,21.93941462]
[1731688894947,0.1,209.43,209.4,21.93941462]
[1731688895124,0.1,209.43,209.42,21.93941462]
[1731688895823,0.1,209.45,209.42,21.93941462]
[1731688896029,0.1,209.45,209.41,21.93941462]
[1731688896332,0.1,209.43,209.42,21.93941462]
[1731688899639,0.1,209.45,209.42,26.71441462]
[1731688899844,0.1,209.45,209.44,21.93941462]
[1731688901147,0.1,209.45,209.42,21.93941462]
[1731688901467,0.1,209.45,209.37,23.776884]
[1731688901468,0.1,209.45,209.41,21.93941462]
[1731688901646,0.1,209.42,209.41,21.93941462]
[1731688901962,0.1,209.44,209.41,21.93941462]
[1731688902176,0.1,209.44,209.43,21.93941462]
[1731688902335,0.1,209.44,209.41,21.93941462]
[1731688902541,0.1,209.42,209.41,21.93941462]
[1731688903155,0.1,209.4,209.39,21.93941462]
[1731688903440,0.1,209.4,209.36,21.93941462]
[1731688903943,0.1,209.4,209.38,21.93941462]
[1731688904453,0.1,209.36,209.34,21.93941462]
[1731688904667,0.1,209.36,209.35,21.93941462]
[1731688905162,0.1,209.34,209.33,21.93941462]
[1731688905368,0.1,209.34,209.32,21.93941462]
[1731688905572,0.1,209.38,209.33,21.93941462]
[1731688905739,0.1,209.38,209.37,21.93941462]
[1731688906061,0.1,209.35,209.34,21.93941462]
[1731688906265,0.1,209.35,209.32,21.93941462]
[1731688906562,0.1,209.33,209.32,21.93941462]
[1731688906867,0.1,209.37,209.32,21.93941462]
[1731688907164,0.1,209.37,209.35,21.93941462]
[1731688907459,0.1,209.37,209.36,21.93941462]
[1731688907848,0.1,209.35,209.33,21.93941462]
[1731688908668,0.1,209.35,209.33,26.71641462]
[1731688908850,0.05114962,209.33,209.31,16.7214]
[1731688909047,0.05114962,209.33,209.32,21.93941462]
[1731688909253,0.05114962,209.33,209.27,11.9462]
[1731688909464,0.05114962,209.26,209.22,21.93941462]
[1731688909667,0.05114962,209.26,209.22,11.9486]
[1731688909871,0.05114962,209.21,209.18,21.93941462]
[1731688910080,0.05114962,209.19,209.17,11.9516]
[1731688910456,0.05114962,209.19,209.17,33.89101462]
[1731688910781,0.05114962,209.21,209.18,21.93941462]
[1731688911071,4.3002,209.29,209.12,11.9544]
[1731688911072,0.05114962,209.16,209.12,11.9544]
[1731688911374,0.05114962,209.18,209.14,21.93941462]
[1731688911857,0.05114962,209.2,209.16,21.93941462]
[1731688912056,0.05114962,209.18,209.14,21.93941462]
[1731688912374,0.05114962,209.18,209.15,23.776884]
[1731688912755,0.05114962,209.2,209.15,26.72061462]
[1731688912950,0.05114962,209.18,209.15,26.72061462]
[1731688913178,0.05114962,209.18,209.15,4.7812]
[1731688913671,0.05114962,209.2,209.17,21.93941462]
[1731688913974,0.05114962,209.18,209.15,38.67371462]
[1731688914270,0.05114962,209.18,209.15,16.7343]
[1731688914469,0.05114962,209.16,209.15,11.9531]
[1731688914666,0.05114962,209.19,209.15,38.67371462]
[1731688914869,0.05114962,209.19,209.17,21.93941462]
[1731688915059,0.05114962,209.19,209.16,21.93941462]
[1731688915374,0.05114962,209.17,209.15,11.9531]
[1731688916666,0.05114962,209.1,209.05,19.120276]
[1731688916872,6.1539,209.2,209.03,26.72341462]
[1731688916873,0.05114962,209.08,209.03,26.72341462]
[1731688917168,0.05114962,209.08,209.04,11.9591]
[1731688917778,0.05114962,209.08,209.05,21.93941462]
[1731688918073,0.05114962,209.08,209.04,33.89851462]
[1731688918375,0.05114962,209.1,209.07,21.93941462]
[1731688918581,0.05114962,209.1,209.05,21.93941462]
[1731688919169,0.05114962,209.07,209.04,38.68221462]
[1731688919405,0.05114962,209.07,209.04,16.7428]
[1731688919974,0.05114962,209.09,209.06,21.93941462]
[1731688920165,0.05114962,209.07,209.04,38.68211462]
[1731688920559,0.05114962,209.08,209.04,16.7427]
[1731688920951,0.05114962,209.08,209.04,38.68211462]
[1731688921151,0.05114962,209.03,208.99,11.9619]
[1731688921354,0.05114962,209.01,208.99,11.9619]
[1731688922073,0.05114962,209.01,208.97,26.72471462]
[1731688922471,0.05114962,209.01,208.99,21.93941462]
[1731688922774,0.05114962,209.01,209.0,21.93941462]
[1731688922963,0.05114962,209.01,208.97,16.7487]
[1731688922964,0.05114962,209.01,208.99,21.93941462]
[1731688923363,0.05114962,209.03,209.0,21.93941462]
[1731688923571,0.05114962,209.03,209.02,21.93941462]
[1731688923861,0.05114962,209.03,209.0,45.71629862]
[1731688924066,10.6122,209.09,208.97,4.7852]
[1731688924067,0.05114962,209.01,208.97,4.7852]
[1731688924268,10.6122,209.09,208.96,21.93941462]
[1731688924269,0.05114962,208.97,208.96,21.93941462]
[1731688924585,0.05114962,208.97,208.95,26.72511462]
[1731688924991,0.05114962,208.95,208.91,21.93941462]
[1731688925280,0.05114962,208.93,208.89,38.69411462]
[1731688925462,0.05114962,208.89,208.88,0.4811857]
[1731688929982,0.15114962,208.89,208.88,0.4811857]
[1731688930277,0.05114962,208.76,208.74,11.9763]
[1731688930475,0.05114962,208.76,208.74,16.7669]
[1731688930695,0.1,208.86,208.67,0.53003608]
[1731688930696,0.05114962,208.73,208.72,21.93941462]
[1731688930892,35.2489,208.87,208.72,21.93941462]
[1731688930893,0.05114962,208.75,208.72,21.93941462]
[1731688931071,0.05114962,208.75,208.74,21.93941462]
[1731688931271,0.05114962,208.75,208.73,21.93941462]
[1731688931588,0.05114962,208.75,208.74,21.93941462]
[1731688932052,0.05114962,208.75,208.74,26.73001462]
[1731688932205,0.05114962,208.77,208.74,38.70661462]
[1731688932498,0.05114962,208.77,208.76,21.93941462]
[1731688932805,0.05114962,208.79,208.77,23.776884]
[1731688933238,0.05114962,208.81,208.79,23.776884]
[1731688933356,0.05114962,208.79,208.74,16.7672]
[1731688933609,0.05114962,208.79,208.78,21.93941462]
[1731688934388,0.05114962,208.79,208.78,26.72911462]
[1731688934695,0.05114962,208.81,208.79,23.776884]
[1731688934897,0.05114962,208.81,208.8,21.93941462]
[1731688935284,0.05114962,208.74,208.73,11.977]
[1731688935477,0.05114962,208.76,208.73,33.91641462]
[1731688935683,0.05114962,208.78,208.75,21.93941462]
[1731688935883,0.05114962,208.78,208.77,21.93941462]
[1731688936197,0.05114962,208.78,208.76,21.93941462]
[1731688936459,0.05114962,208.78,208.77,21.93941462]
[1731688936599,0.05114962,208.8,208.77,21.93941462]
[1731688936801,0.05114962,208.8,208.78,21.93941462]
[1731688937197,0.05114962,208.75,208.74,21.93941462]
[1731688937388,0.05114962,208.78,208.74,21.93941462]
[1731688937583,0.05114962,208.75,208.74,21.93941462]
[1731688938587,0.05114962,208.75,208.73,33.91641462]
[1731688938892,0.05114962,208.71,208.69,4.7916]
[1731688939099,0.05114962,208.71,208.69,21.93941462]
[1731688939304,0.05114962,208.69,208.68,11.9797]
[1731688939507,0.05114962,208.69,208.68,33.91911462]
[1731688939698,0.05114962,208.69,208.68,38.71111462]
[1731688940004,0.05114962,208.69,208.68,33.91911462]
[1731688940310,0.05114962,208.69,208.67,0.4811857]
[1731688941708,0.15114962,208.69,208.67,0.4811857]
[1731688942215,0.05114962,208.57,208.55,21.93941462]
[1731688942401,0.1,208.65,208.53,11.9883]
[1731688942402,0.05114962,208.55,208.53,11.9883]
[1731688942600,0.05114962,208.57,208.54,21.93941462]
[1731688942788,0.05114962,208.57,208.55,21.93941462]
[1731688943213,6.374,208.63,208.48,16.7879]
[1731688943214,0.05114962,208.49,208.48,16.7879]
[1731688943401,0.05114962,208.51,208.48,38.72731462]
[1731688943696,0.05114962,208.51,208.5,21.93941462]
[1731688944386,0.05114962,208.51,208.5,26.73551462]
[1731688945825,0.05114962,208.49,208.48,16.788]
[1731688946126,0.05114962,208.51,208.48,16.788]
[1731688946863,0.05114962,208.53,208.5,21.93941462]
[1731688947015,0.05114962,208.53,208.52,21.93941462]
[1731688947219,0.05114962,208.53,208.51,21.93941462]
[1731688947511,0.05114962,208.53,208.52,21.93941462]
[1731688949398,0.05114962,208.53,208.52,45.71629862]
[1731688949602,0.05114962,208.55,208.53,16.784]
[1731688949807,0.05114962,208.57,208.54,21.93941462]
[1731688949999,0.05114962,208.57,208.56,21.93941462]
[1731688950712,0.1,208.7,208.56,21.93941462]
[1731688950713,0.05114962,208.6,208.56,38.72101462]
[1731688951021,0.05114962,208.6,208.59,21.93941462]
[1731688951235,0.05114962,208.6,208.58,21.93941462]
[1731688951794,0.05114962,208.6,208.59,21.93941462]
[1731688951998,0.05114962,208.62,208.59,21.93941462]
[1731688952194,0.05114962,208.62,208.61,21.93941462]
[1731688952836,0.05114962,208.64,208.62,11.9835]
[1731688953117,0.05114962,208.64,208.63,21.93941462]
[1731688953303,0.05114962,208.68,208.63,21.93941462]
[1731688953512,0.05114962,208.66,208.62,16.7769]
[1731688954321,0.05114962,208.67,208.62,16.7769]
[1731688954639,0.05114962,208.67,208.66,21.93941462]
[1731688954800,0.05114962,208.67,208.64,21.93941462]
[1731688954994,0.05114962,208.65,208.63,4.793]
[1731688955215,0.05114962,208.65,208.64,21.93941462]
[1731688955797,0.05114962,208.67,208.64,21.93941462]
[1731688956005,0.05114962,208.67,208.65,21.93941462]
[1731688956243,0.05114962,208.65,208.63,38.71531462]
[1731688956427,0.05114962,208.62,208.6,21.93941462]
[1731688956719,0.05114962,208.6,208.58,33.92491462]
[1731688957021,0.05114962,208.55,208.54,21.93941462]
[1731688957339,0.05114962,208.55,208.53,11.9882]
[1731688957720,0.05114962,208.55,208.53,33.92761462]
[1731688958019,0.05114962,208.55,208.54,21.93941462]
[1731688958223,0.05114962,208.57,208.54,38.72271462]
[1731688958401,0.05114962,208.59,208.56,21.93941462]
[1731688958741,20.0,208.73,208.56,21.93941462]
[1731688958742,0.05114962,208.57,208.56,21.93941462]
[1731688958923,0.05114962,208.59,208.56,21.93941462]
[1731688959213,0.05114962,208.59,208.54,16.7833]
[1731688959214,0.05114962,208.59,208.57,21.93941462]
[1731688959720,0.05114962,208.57,208.52,11.9892]
[1731688959941,0.05114962,208.53,208.52,11.9892]
[1731688960100,0.05114962,208.57,208.52,33.92861462]
[1731688960308,0.05114962,208.57,208.56,21.93941462]
[1731688961007,0.05114962,208.57,208.54,21.93941462]
[1731688961309,0.05114962,208.55,208.53,26.73481462]
[1731688961517,4.314,208.62,208.53,26.73481462]
[1731688961518,0.05114962,208.59,208.54,21.93941462]
[1731688961727,0.05114962,208.59,208.58,21.93941462]
[1731688961940,0.05114962,208.6,208.58,21.93941462]
[1731688962231,0.05114962,208.6,208.59,21.93941462]
[1731688962529,0.05114962,208.62,208.59,21.93941462]
[1731688962712,0.05114962,208.62,208.6,21.93941462]
[1731688962900,0.05114962,208.6,208.54,23.776884]
[1731688963103,0.05114962,208.6,208.55,21.93941462]
[1731688963427,0.05114962,208.58,208.55,38.72191462]
[1731688963600,0.05114962,208.58,208.55,16.7825]
[1731688963805,4.3132,208.66,208.55,16.7825]
[1731688963806,0.05114962,208.56,208.55,16.7825]
[1731688963999,0.05114962,208.58,208.55,16.7825]
[1731688964226,0.05114962,208.56,208.55,38.72191462]
[1731688964425,0.05114962,208.56,208.55,16.7825]
[1731688964611,0.05114962,208.56,208.55,11.9875]
[1731688965308,0.05114962,208.56,208.55,16.7825]
[1731688966008,0.05114962,208.54,208.53,4.7952]
[1731688966905,0.05114962,208.56,208.53,38.72321462]
[1731688967100,0.05114962,208.58,208.55,21.93941462]
[1731688967327,0.05114962,208.58,208.57,21.93941462]
[1731688967524,0.05114962,208.61,208.57,26.73391462]
[1731688967733,0.05114962,208.61,208.58,21.93941462]
[1731688967905,0.05114962,208.61,208.57,38.72021462]
[1731688968239,0.05114962,208.56,208.53,26.73471462]
[1731688968440,0.05114962,208.58,208.55,21.93941462]
[1731688969120,0.05114962,208.58,208.54,21.93941462]
[1731688969732,0.05114962,208.55,208.53,26.73461462]
[1731688970037,0.05114962,208.57,208.53,26.73461462]
[1731688970232,0.05114962,208.57,208.54,21.93941462]
[1731688970437,0.05114962,208.57,208.56,21.93941462]
[1731688970615,0.05114962,208.57,208.55,21.93941462]
[1731688970848,0.05114962,208.57,208.56,21.93941462]
[1731688971113,0.05114962,208.59,208.56,21.93941462]
[1731688971339,4.3134,208.65,208.55,21.93941462]
[1731688971340,0.05114962,208.56,208.55,21.93941462]
[1731688971639,0.05114962,208.56,208.54,26.73441462]
[1731688972244,0.05114962,208.56,208.55,21.93941462]
[1731688972628,0.05114962,208.6,208.55,21.93941462]
[1731688972931,0.05114962,208.6,208.58,21.93941462]
[1731688973329,0.05114962,208.6,208.55,23.776884]
[1731688973330,0.05114962,208.6,208.59,21.93941462]
[1731688973725,0.05114962,208.62,208.59,26.73341462]
[1731688973923,0.05114962,208.62,208.61,21.93941462]
[1731688974142,0.05114962,208.62,208.6,21.93941462]
[1731688974532,0.05114962,208.62,208.59,38.71861462]
[1731688974842,0.05114962,208.62,208.59,16.7792]
[1731688975142,0.05114962,208.6,208.59,11.9852]
[1731688976019,0.05114962,208.6,208.55,62.49859862]
[1731688976249,0.05114962,208.58,208.56,21.93941462]
[1731688976438,0.05114962,208.58,208.57,21.93941462]
[1731688976741,0.05114962,208.58,208.56,21.93941462]
[1731688976935,0.05114962,208.58,208.55,62.49859862]
[1731688977329,0.05114962,208.56,208.55,16.7823]
[1731688977832,0.05114962,208.58,208.55,38.72171462]
[1731688978026,0.05114962,208.55,208.51,33.92911462]
[1731688978231,0.05114962,208.53,208.51,33.92911462]
[1731688978428,0.05114962,208.53,208.51,11.9897]
[1731688978840,0.05114962,208.53,208.51,33.92911462]
[1731688979421,0.05114962,208.53,208.51,38.72501462]
[1731688980024,20.0,208.66,208.51,38.72501462]
[1731688980025,0.05114962,208.55,208.52,21.93941462]
[1731688980234,0.05114962,208.55,208.54,21.93941462]
[1731688980440,0.05114962,208.57,208.54,21.93941462]
[1731688980650,0.05114962,208.57,208.55,21.93941462]
[1731688980827,0.05114962,208.59,208.56,21.93941462]
[1731688981353,0.05114962,208.59,208.58,21.93941462]
[1731688981557,6.2881,208.67,208.58,21.93941462]
[1731688981558,0.05114962,208.61,208.58,26.73371462]
[1731688982151,0.05114962,208.63,208.6,21.93941462]
[1731688982641,0.05114962,208.63,208.59,45.71629862]
[1731688982946,0.05114962,208.63,208.6,21.93941462]
[1731688983122,0.05114962,208.61,208.58,38.71951462]
[1731688983527,0.05114962,208.63,208.6,21.93941462]
[1731688984045,0.1,208.71,208.58,16.7801]
[1731688984046,0.05114962,208.65,208.62,21.93941462]
[1731688984261,0.05114962,208.65,208.64,21.93941462]
[1731688986147,0.05114962,208.67,208.65,16.7744]
[1731688987433,0.05114962,208.67,208.63,21.93941462]
[1731688987647,0.05114962,208.7,208.66,23.776884]
[1731688987859,0.05114962,208.72,208.68,21.93941462]
[1731688988031,0.05114962,208.72,208.7,21.93941462]
[1731688988342,0.05114962,208.72,208.68,21.93941462]
[1731688988547,0.05114962,208.72,208.67,21.93941462]
[1731688988743,0.05114962,208.69,208.65,21.93941462]
[1731688988931,0.05114962,208.71,208.68,21.93941462]
[1731688989125,0.2,208.82,208.64,23.776884]
[1731688989126,0.05114962,208.74,208.7,21.93941462]
[1731688989326,0.05114962,208.74,208.71,16.7696]
[1731688990145,4.3103,208.8,208.67,21.93941462]
[1731688990146,0.05114962,208.72,208.67,21.93941462]
[1731688990330,0.05114962,208.67,208.66,11.9808]
[1731688990531,0.05114962,208.63,208.61,11.9835]
[1731688991346,0.05114962,208.63,208.61,16.7771]
[1731688991545,0.05114962,208.63,208.61,11.9835]
[1731688992841,0.05114962,208.65,208.61,33.92291462]
[1731688993041,0.05114962,208.63,208.61,11.9835]
[1731688993245,0.05114962,208.63,208.62,21.93941462]
[1731688993445,0.05114962,208.65,208.62,45.71629862]
[1731688993763,0.05114962,208.69,208.64,21.93941462]
[1731688993948,0.05114962,208.71,208.68,21.93941462]
[1731688994499,0.05114962,208.71,208.69,21.93941462]
[1731688994640,0.05114962,208.71,208.68,21.93941462]
[1731688995132,0.05114962,208.71,208.67,21.93941462]
[1731688995334,0.05114962,208.68,208.67,21.93941462]
[1731688995559,0.05114962,208.72,208.68,16.772]
[1731688995868,0.05114962,208.7,208.68,16.772]
[1731688996362,0.05114962,208.7,208.68,38.71141462]
[1731688996747,0.05114962,208.7,208.68,16.772]
[1731688997545,0.05114962,208.7,208.68,11.98]
[1731688998443,0.05114962,208.68,208.65,28.7562]
[1731688998845,0.05114962,208.66,208.65,16.7744]
[1731688999278,0.05114962,208.66,208.65,11.9817]
[1731688999566,0.05114962,208.66,208.6,21.93941462]
[1731688999778,0.05114962,208.66,208.61,16.7776]
[1731689000652,0.05114962,208.68,208.65,21.93941462]
[1731689001649,0.05114962,208.68,208.66,4.7924]
[1731689001959,0.05114962,208.68,208.66,26.73181462]
[1731689002271,0.05114962,208.68,208.66,4.7924]
[1731689002650,0.05114962,208.68,208.63,21.93941462]
[1731689002850,0.05114962,208.68,208.66,11.9812]
[1731689003267,0.05114962,208.64,208.63,4.7931]
[1731689003769,0.05114962,208.64,208.62,11.9834]
[1731689003966,0.05114962,208.61,208.57,38.71971462]
[1731689004448,0.05114962,208.61,208.57,16.7803]
[1731689004771,0.05114962,208.6,208.57,33.92521462]
[1731689005072,0.05114962,208.6,208.58,21.93941462]
[1731689006169,0.05114962,208.6,208.59,4.794]
[1731689007173,0.05114962,208.6,208.59,21.93941462]
[1731689008371,0.05114962,208.6,208.59,26.73341462]
[1731689009361,0.05114962,208.6,208.58,45.71629862]
[1731689010056,0.05114962,208.6,208.59,21.93941462]
[1731689010457,0.05114962,208.6,208.59,26.73341462]
[1731689010661,0.05114962,208.65,208.6,23.776884]
[1731689010873,0.05114962,208.65,208.63,21.93941462]
[1731689011056,0.05114962,208.69,208.65,23.776884]
[1731689011254,0.05114962,208.71,208.68,21.93941462]
[1731689011474,15.5006,208.75,208.67,21.93941462]
[1731689011475,0.05114962,208.69,208.67,21.93941462]
[1731689012057,0.05114962,208.65,208.63,45.71629862]
[1731689012264,0.05114962,208.61,208.59,38.71861462]
[1731689012462,0.05114962,208.61,208.59,16.7792]
[1731689013370,0.05114962,208.61,208.6,21.93941462]
[1731689013682,0.05114962,208.65,208.6,21.93941462]
[1731689013874,0.05114962,208.65,208.63,21.93941462]
[1731689014077,0.05114962,208.65,208.62,21.93941462]
[1731689014489,0.05114962,208.67,208.64,21.93941462]
[1731689014659,0.05114962,208.69,208.66,21.93941462]
[1731689014864,0.05114962,208.69,208.67,21.93941462]